[Event "Krakow Championship-A 2022"]
[Site "Krakow"]
[Date "2022.06.26"]
[Round "2.3"]
[White "Paszewski, Mateusz"]
[Black "Warakomski, Tomasz"]
[Result "0-1"]
[ECO "A28"]
[WhiteElo "2286"]
[BlackElo "2534"]
[Annotator "TA"]
[PlyCount "85"]
[EventDate "2022.06.25"]
[EventType "swiss"]
[EventCountry "POL"]
[SourceTitle "playchess.com"]
[Source "ChessBase"]
[SourceQuality "1"]
[TimeControl "40/5400+30:1800+30"]

{[%evp 9,85,10,0,0,14,10,13,0,0,0,0,0,14,0,0,0,0,0,0,6,23,0,0,7,1,0,31,16,18,-28,-23,-29,-29,-25,-14,-18,-32,-17,0,0,0,0,0,0,0,0,0,0,0,0,0,-22,-10,-253,-234,-553,-545,-860,-615,-423,-339,-293,-124,-1367,-1073,-1624,-1716,-29978,-29979,-29979,-29980,-29981,-29982,-29982,-29983,-29985,-29983,-29975]} 1. c4 {[%emt 0:00:16]} e5 {[%emt 0:00:24]} 2. Nc3 {[%emt 0:00:04]} Nc6 {[%emt 0:04:40]} 3. Nf3 {[%emt 0:01:47]} Nf6 {[%emt 0:01:58]} 4. e4 {[%emt 0:00:22]} Bb4 {[%emt 0:00:36]} 5. d3 {[%emt 0:00:03]} d6 {[%emt 0:00:04]} 6. a3 {[%emt 0:00:06] A28: English Opening: Four Knights Variation.} Bc5 {[%emt 0:00:02]} 7. b4 {[%emt 0:00:07]} Bb6 {[%emt 0:00:07]} 8. Na4 {[%emt 0:00:39] The position is equal.} Bd4 $1 {[%emt 0:00:04] The main line 8...Bd4 scores better than 8...Bg4.} 9. Nxd4 {[%emt 0:08:28]} Nxd4 {[%emt 0:00:06]} 10. Be2 {[%emt 0:00:09]} Be6 {[%emt 0:04:16] [#]} 11. Nc3 $146 {[%emt 0:13:25]} ({Predecessor:} 11. O-O O-O 12. Nc3 Nd7 13. Be3 Nxe2+ 14. Qxe2 f5 15. exf5 Bxf5 16. d4 Qe8 17. Rad1 exd4 18. Bxd4 Qxe2 19. Nxe2 {½-½ (32) Ni,H (2662)-Khairullin,I (2649) Khanty-Mansiysk 2011}) 11... c6 {[%emt 0:06:59]} 12. O-O {[%emt 0:07:45]} a5 {[%emt 0:05:31]} 13. Rb1 {[%emt 0:07:25]} axb4 {[%emt 0:09:52]} 14. axb4 {[%emt 0:00:01]} b5 {[%emt 0:00:27]} 15. cxb5 {[%emt 0:27:50]} cxb5 {[%emt 0:00:08]} 16. Be3 {[%emt 0:00:06]} O-O {[%emt 0:10:04]} 17. Qd2 {[%emt 0:02:48]} (17. Bxd4 $2 exd4 18. Nd5 (18. Nxb5 $2 Qb6 $19) 18... Bxd5 19. exd5 Nxd5 $17) 17... Ra6 {[%emt 0:18:50]} 18. Bd1 {[%emt 0:03:52]} ({Much worse is} 18. Bxd4 exd4 19. Nd1 (19. Nxb5 $2 Qb6 $19) 19... Qb6 $15) 18... d5 {[%emt 0:00:46]} 19. exd5 {[%emt 0:07:16]} (19. f4 {was preferrable.} Nc6 20. fxe5 (20. Nxb5 d4 $11) 20... Nxe4 21. dxe4) 19... Nxd5 $11 {[%emt 0:02:26]} 20. Bxd4 {[%emt 0:00:04]} exd4 {[%emt 0:00:07]} 21. Nxd5 {[%emt 0:00:02]} (21. Nxb5 $2 Qb6 22. Bb3 Qxb5 $19) 21... Bxd5 {[%emt 0:00:07]} 22. Bb3 {[%emt 0:00:06]} Bxb3 {[%emt 0:12:21]} 23. Rxb3 {[%emt 0:00:46]} h5 {[%emt 0:00:05]} 24. Rbb1 {[%emt 0:01:42]} h4 {[%emt 0:00:43][%cal Oh4h3]} 25. h3 {[%emt 0:00:32]} Rg6 {[%emt 0:06:15]} 26. Rbe1 {[%emt 0:04:15]} Qc8 {[%emt 0:07:13]} 27. Kh1 {[%emt 0:01:33]} Qc6 $40 {[%emt 0:00:07][%csl Gg6][%cal Rc6g2][%mdl 128] [#] White needs to defend precisely.} 28. f3 {[%emt 0:02:05]} Qc3 {[%emt 0:00:42]} 29. Rf2 {[%emt 0:01:55]} Rc8 {[%emt 0:01:52]} 30. Rfe2 {[%emt 0:07:05]} Re6 {[%emt 0:00:49] Inhibits Re8+. aiming for ...Qxd2.} 31. Qxc3 {[%emt 0:02:22] [#]} (31. Qf4 $1 $11 {and White stays safe.}) 31... dxc3 $19 {[%emt 0:00:08][%cal Bd4c3,Bc3c2][%mdl 32]} 32. Rxe6 {[%emt 0:00:01]} (32. Re4) 32... fxe6 $11 {[%emt 0:00:06][%mdl 4096] Endgame KR-KR} 33. Kg1 {[%emt 0:01:16]} c2 {[%emt 0:01:02]} 34. Rc1 {[%emt 0:00:02]} Kf7 {[%emt 0:00:04]} 35. Kf2 {[%emt 0:00:07]} Kf6 {[%emt 0:00:41]} (35... Ke7 $19 {Strongly threatening ...Kd6.} 36. f4 Kf6) 36. Ke3 $2 {[%emt 0:00:30][%mdl 8192]} (36. f4 $17) 36... Ke5 $19 {[%emt 0:00:17]} 37. Kd2 {[%emt 0:01:32]} Kf4 {[%emt 0:00:20]} 38. Rxc2 {[%emt 0:00:32]} Rxc2+ {[%emt 0:00:07] Black mates.} 39. Kxc2 {[%emt 0:00:01]} Kg3 {[%emt 0:00:07]} 40. Kd2 {[%emt 0:00:48]} Kxg2 {[%emt 0:00:38]} 41. Ke3 {[%emt 0:04:40]} Kxh3 {[%emt 0:00:12]} 42. f4 {[%emt 0:01:08]} Kg2 {[%emt 0:00:24]} 43. Kd4 {Weighted Error Value: White=0.70/Black=0.17 (very precise)} 0-1

[Event "Krakow Championship-A 2022"]
[Site "Krakow"]
[Date "2022.06.26"]
[Round "2.4"]
[White "Leniart, Arkadiusz"]
[Black "Nurkiewicz, Maciej"]
[Result "0-1"]
[ECO "B22"]
[WhiteElo "2473"]
[BlackElo "2332"]
[Annotator "TA"]
[PlyCount "98"]
[EventDate "2022.06.25"]
[EventType "swiss"]
[EventCountry "POL"]
[SourceTitle "playchess.com"]
[Source "ChessBase"]
[SourceQuality "1"]
[TimeControl "40/5400+30:1800+30"]

{[%evp 12,98,31,15,39,46,42,41,39,38,41,52,36,53,48,16,36,-18,0,0,0,0,0,-20,-10,-19,-20,-12,-27,-25,-30,-66,0,-30,0,-52,-48,-122,-125,-112,-110,-139,-143,-129,-118,-122,-17,-10,-10,-10,-10,-10,-10,-10,-10,-191,-179,-308,-320,-325,-318,-322,-318,-873,-294,-341,-301,-589,-576,-547,-511,-425,-375,-1571,-1483,-4627,-4627,-4133,-3439,-2129,-1115,-1634,-1518,-4594,-4133,-5654,-5579,-4133,-1068]} 1. e4 {[%emt 0:00:15]} c5 {[%emt 0:00:05]} 2. c3 {[%emt 0:00:04]} d5 {[%emt 0:00:17]} 3. exd5 {[%emt 0:00:06]} Qxd5 {[%emt 0:00:04]} 4. d4 {[%emt 0:00:07]} Nc6 {[%emt 0:00:13]} 5. Nf3 {[%emt 0:00:06]} Bg4 {[%emt 0:00:09]} 6. dxc5 {[%emt 0:00:06]} Qxd1+ {[%emt 0:03:16]} 7. Kxd1 {[%emt 0:00:38]} e5 {[%emt 0:00:02] B22: Sicilian: 2 c3.} 8. b4 $1 {[%emt 0:00:10][%cal Bb2b4,Bb4b5][%mdl 32]} a5 {[%emt 0:01:36]} 9. b5 {[%emt 0:04:11]} Nd8 {[%emt 0:02:14] White is slightly better.} 10. c6 {[%emt 0:02:12]} bxc6 {[%emt 0:02:16]} 11. h3 {[%emt 0:00:06]} Bxf3+ {[%emt 0:02:01]} 12. gxf3 {[%emt 0:00:04]} Bc5 {[%emt 0:06:07] [#]} 13. Ba3 $146 {[%emt 0:25:32]} ({Predecessor:} 13. Nd2 Nf6 14. bxc6 Nxc6 15. Bb5 Rc8 16. Nb3 O-O 17. Nxc5 Na7 18. Bd3 Rfd8 19. Kc2 Rxc5 {1-0 (40) Petrov,N (2511)-Iniyan,P (2378) Budapest 2017}) 13... Ne6 {[%emt 0:07:49]} 14. Bc4 {[%emt 0:02:42]} (14. Kc2 $14) 14... cxb5 {[%emt 0:24:40]} 15. Bxb5+ {[%emt 0:10:54]} Ke7 {[%emt 0:04:44][%cal Be8e7,Be7f6,Bf6f5][%mdl 32]} 16. Bxc5+ {[%emt 0:02:43]} Nxc5 {[%emt 0:00:04]} 17. Re1 {[%emt 0:00:11]} Kf6 {[%emt 0:09:55]} 18. Nd2 {[%emt 0:04:47]} Ne7 {[%emt 0:00:17]} 19. Kc2 {[%emt 0:08:32]} Ng6 {[%emt 0:05:45]} 20. Nc4 {[%emt 0:02:57]} Rhd8 {[%emt 0:05:14]} 21. Re3 {[%emt 0:10:47]} Kf5 {[%emt 0:07:07]} ({Don't play} 21... Rab8 22. a4 $11) (21... Ne6 $15) 22. Rb1 {[%emt 0:05:23]} (22. Rae1 $5 {[%cal Re3e5]} f6 23. Rg1 $11) 22... f6 {[%emt 0:05:03]} 23. Bc6 {[%emt 0:01:48]} (23. Ree1 $11) 23... Ra6 $15 {[%emt 0:00:25]} 24. Bb7 {[%emt 0:02:50]} (24. Be4+ $15 Kg5 25. h4+ Kh5 26. Bf5) 24... Nxb7 $17 {[%emt 0:05:22] Chess con chili.} 25. Rxb7 {[%emt 0:00:06]} Rc6 {[%emt 0:01:29]} 26. Nd2 {[%emt 0:06:51]} Nf4 {[%emt 0:00:18]} 27. Rxg7 {[%emt 0:05:29]} Nd5 {[%emt 0:00:42] Black is more active.} 28. Rxh7 {[%emt 0:01:46][%cal Oh7a7]} Nb4+ {[%emt 0:05:51]} ({Better is} 28... Rg8 $17 {aiming for ...Rg2.} 29. c4 Nxe3+ 30. fxe3 Rg2) 29. Kb3 $11 {[%emt 0:01:33]} Rxd2 {[%emt 0:00:15]} 30. cxb4 {[%emt 0:00:05]} axb4 {[%emt 0:00:12][%mdl 4096] Endgame KRR-KRR} 31. Rh5+ $1 {[%emt 0:00:42]} Kg6 {[%emt 0:00:18]} 32. Rh4 {[%emt 0:00:16]} Ra6 {[%emt 0:00:42]} 33. Rxb4 $2 {[%emt 0:00:28] Now White is beyond hope.} (33. Kxb4 $11 Rdxa2 34. f4) 33... Raxa2 $19 {[%emt 0:00:30]} 34. Rg4+ {[%emt 0:01:49]} (34. Rh4 $142) 34... Kf5 {[%emt 0:00:12]} 35. Rc3 {[%emt 0:01:01]} Rxf2 {[%emt 0:00:31]} 36. Rd3 {[%emt 0:00:38]} Ra8 {[%emt 0:01:10]} 37. Rh4 $2 {[%emt 0:00:24]} (37. Rb4) 37... Rg8 $2 {[%emt 0:00:49]} (37... Rfa2 {Strongly threatening ...R8a3+.} 38. Rd6 R8a3+ 39. Kc4 Ra4+ 40. Kb3 Rxh4 41. Kxa2 Rxh3) 38. Rh5+ {[%emt 0:00:28]} Ke6 {[%emt 0:00:35]} 39. Rc3 $2 {[%emt 0:00:40]} (39. Kc3) 39... Rg3 {[%emt 0:00:33]} 40. Rc6+ {[%emt 0:00:05] [#]} Kf7 $1 {[%emt 0:00:28]} 41. h4 {[%emt 0:01:48]} Rfxf3+ {[%emt 0:04:26]} 42. Kb4 $2 {[%emt 0:00:18]} (42. Kb2) 42... Rb3+ {[%emt 0:01:17] Black is clearly winning.} 43. Kc4 {[%emt 0:01:36]} Rbc3+ {[%emt 0:01:09]} 44. Kb5 {[%emt 0:00:09]} Rxc6 {[%emt 0:00:11]} 45. Kxc6 {[%emt 0:00:06]} Rd3 {[%emt 0:00:18]} 46. Kc5 {[%emt 0:00:32]} Rd8 {[%emt 0:01:02] [#] ( -> ...Kg6)} 47. Rf5 {[%emt 0:00:34]} Rh8 {[%emt 0:00:15]} 48. Rf1 {[%emt 0:00:46]} Rxh4 {[%emt 0:00:12]} 49. Rd1 {[%emt 0:00:21]} Ke6 {[%emt 0:00:38] Weighted Error Value: White=0.85/Black=0.25 (precise)} (49... Rd4 $142 50. Re1 Ke6) 0-1

[Event "Krakow Championship-A 2022"]
[Site "Krakow"]
[Date "2022.06.26"]
[Round "2.5"]
[White "Klimkowski, Jan"]
[Black "Piekielny, Pawel"]
[Result "0-1"]
[ECO "E10"]
[WhiteElo "2401"]
[BlackElo "2230"]
[Annotator "TA"]
[PlyCount "92"]
[EventDate "2022.06.25"]
[EventType "swiss"]
[EventCountry "POL"]
[SourceTitle "playchess.com"]
[Source "ChessBase"]
[SourceQuality "1"]
[TimeControl "40/5400+30:1800+30"]

{[%evp 9,92,-12,-18,-22,-15,-14,-13,-27,-28,-38,-23,-28,-19,-29,-22,-24,12,16,4,0,0,0,0,0,0,0,0,0,14,0,1,0,14,12,26,29,21,29,24,-14,-16,-27,-38,-68,-16,-43,-36,-47,-34,-67,-44,-44,-20,-20,0,-31,-31,-31,0,0,0,0,0,0,0,-147,-147,-147,-147,-165,-121,-200,-174,-2247,-2200,-29971,-29973,-29971,-29973,-29969,-29974,-29972,-29972,-29972,-29973]} 1. d4 {[%emt 0:00:04]} e6 {[%emt 0:00:13]} 2. c4 {[%emt 0:00:15]} Nf6 {[%emt 0:00:07]} 3. Nf3 {[%emt 0:00:08]} d5 {[%emt 0:00:08]} 4. Nbd2 {[%emt 0:02:34]} c5 {[%emt 0:03:32]} 5. cxd5 {[%emt 0:05:39]} exd5 {[%emt 0:01:23]} 6. dxc5 {[%emt 0:10:01] D30: Queen's Gambit Declined: Systems without Nc3.} Bxc5 {[%emt 0:03:03]} 7. Nb3 {[%emt 0:00:18]} Bb6 {[%emt 0:00:15]} 8. e3 {[%emt 0:03:03] The position is equal.} (8. Bf4 {keeps more tension.} Ne4 9. e3 Nc6 10. Bd3) 8... O-O {[%emt 0:00:36]} 9. Be2 {[%emt 0:01:50]} Nc6 {[%emt 0:02:16]} 10. O-O {[%emt 0:01:06]} Bg4 {[%emt 0:04:28]} 11. h3 {[%emt 0:01:52]} Bh5 {[%emt 0:03:34] [#]} 12. Nbd4 $146 {[%emt 0:03:09]} ({Predecessor:} 12. Nfd4 Bxe2 13. Nxe2 Rc8 14. Nbd4 Nxd4 15. Nxd4 Qd7 16. a4 Bc7 17. b3 Rfd8 18. Ba3 {1-0 (92) Taliaferro,M (1874)-Zelnick,D (1250) Bartlesville 2004}) 12... Nxd4 {[%emt 0:06:43]} (12... Qe7 {with more complications.} 13. Nf5 Qd7 14. Ng3 Bg6) 13. Nxd4 {[%emt 0:02:02]} Bxd4 {[%emt 0:11:33]} 14. exd4 {[%emt 0:04:03]} Bxe2 {[%emt 0:00:29]} 15. Qxe2 {[%emt 0:00:08]} Re8 {[%emt 0:02:32]} 16. Be3 {[%emt 0:04:30]} Qb6 {[%emt 0:02:31]} 17. Rac1 {[%emt 0:03:56]} Rac8 {[%emt 0:01:21]} 18. Rfd1 {[%emt 0:13:31]} Rc6 {[%emt 0:08:05]} 19. Rc2 {[%emt 0:03:02]} Rec8 {[%emt 0:01:25][%cal Be8c8,Bc8c5,Bc5c6][%mdl 32]} 20. Rc5 {[%emt 0:03:02]} Qd8 {[%emt 0:05:01]} 21. Bg5 {[%emt 0:02:28]} Rxc5 {[%emt 0:11:14]} (21... h6 {feels hotter.} 22. Bxf6 Rxf6 23. Qc2 Rfc6) 22. dxc5 {[%emt 0:00:15]} Rxc5 {[%emt 0:00:08]} 23. Bxf6 {[%emt 0:01:33]} gxf6 $11 {[%emt 0:02:55][%mdl 4096] Endgame KQR-KQR} 24. g3 {[%emt 0:04:59]} Qd7 {[%emt 0:02:44]} 25. b4 {[%emt 0:11:02]} Rc6 {[%emt 0:06:55]} 26. Qe3 {[%emt 0:03:27]} Qxh3 {[%emt 0:06:08]} ({Black should play} 26... Rc4 $15) 27. Rxd5 {[%emt 0:02:14]} Kg7 {[%emt 0:02:53]} 28. Rd4 {[%emt 0:00:56]} Re6 {[%emt 0:01:48]} 29. Re4 {[%emt 0:01:17]} Qf5 {[%emt 0:02:29]} (29... b6 {looks sharper.} 30. a3 Rxe4 31. Qxe4 Qd7) 30. Rxe6 {[%emt 0:00:18]} fxe6 $15 {[%emt 0:00:22] KQ-KQ} 31. a3 {[%emt 0:02:21]} a6 {[%emt 0:01:20]} 32. Qd4 {[%emt 0:01:33]} (32. Qb6 $5 {[%cal Rb6b7]}) 32... Qd5 {[%emt 0:01:44]} 33. Qc3 {[%emt 0:00:40]} h5 {[%emt 0:00:50]} 34. Qc7+ {[%emt 0:00:58]} Kg6 {[%emt 0:00:08]} 35. Qc2+ {[%emt 0:00:06]} Kg5 {[%emt 0:05:02]} 36. Qc7 {[%emt 0:03:44]} Qf3 {[%emt 0:01:01]} 37. Qh7 {[%emt 0:01:26]} (37. Qc5+ $11 {keeps the balance.} e5 38. Qe7) 37... Kg4 $1 $17 {[%emt 0:01:09]} (37... Qxa3 $6 38. Qg7+ Kf5 39. Qh7+ Kg5 40. Qg7+ Kf5 41. Qh7+ Kg5 $11) 38. Qb1 {[%emt 0:01:32]} b5 {[%emt 0:00:49]} 39. Qe1 {[%emt 0:00:42]} f5 {[%emt 0:00:30]} ({Stronger than} 39... Qxa3 40. Qxe6+ Kg5 41. Qg8+ Kf5 42. Qd5+ Kg6 43. Qg8+ Kh6 44. Qh8+ Kg5 45. Qg8+ Kh6 46. Qh8+ Kg5 47. Qg8+ $11) 40. Qa1 {[%emt 0:02:57]} ({Don't play} 40. Qxe6 Kh3 41. Kf1 Kh2) (40. Qc1 $17 {keeps fighting.}) 40... e5 $1 $19 {[%emt 0:00:27][%cal Be6e5,Be5e4][%mdl 32]} 41. Qe1 $2 {[%emt 0:31:42] [#]} ({But not} 41. Qxe5 $2 Kh3 42. Kf1 Qd3+ 43. Ke1 Kg2 $19) (41. Qf1) 41... e4 $1 {[%emt 0:30:17] ( -> ...e3)} 42. Kh2 {[%emt 0:00:07]} f4 {[%emt 0:00:49] Black mates.} 43. gxf4 {[%emt 0:00:08]} Qxf4+ {[%emt 0:00:21]} 44. Kg1 {[%emt 0:00:32] [#]} e3 $1 {[%emt 0:00:22]} 45. Qd1+ {[%emt 0:00:00]} Kh4 {[%emt 0:00:00]} 46. fxe3 {[%emt 0:00:00]} Qg4+ {[%emt 0:00:00] Weighted Error Value: White=0.38/Black=0.08 (flawless)} 0-1

[Event "Krakow Championship-A 2022"]
[Site "Krakow"]
[Date "2022.06.26"]
[Round "2.6"]
[White "Gjestemoen-VonHirsch, Andre"]
[Black "Nguyen, Piotr"]
[Result "0-1"]
[ECO "B09"]
[WhiteElo "2236"]
[BlackElo "2402"]
[Annotator "TA"]
[PlyCount "102"]
[EventDate "2022.06.25"]
[EventType "swiss"]
[EventCountry "POL"]
[SourceTitle "playchess.com"]
[Source "ChessBase"]
[SourceQuality "1"]
[TimeControl "40/5400+30:1800+30"]

{[%evp 16,102,49,-8,0,-17,-21,-17,-41,-40,-17,-18,-33,-23,-21,-29,0,0,-8,-131,-100,-100,-103,-98,-101,-91,-93,-87,-68,-63,-62,-76,-83,-113,-106,-110,-12,-14,-20,-18,-6,-6,-6,-17,0,0,0,0,0,0,0,-9,-14,-172,-158,-182,-148,-167,-158,-168,-162,-194,-197,-439,-530,-672,-695,-758,-749,-726,-692,-2327,-1746,-5379,-3635,-5214,-12201,-6187,-3214,-29970,-29971,-29970,-29971,-29974,-29975,-29974,-29975,-29974,-29974]} 1. e4 {[%emt 0:00:19]} d6 {[%emt 0:00:04]} 2. d4 {[%emt 0:00:21]} g6 {[%emt 0:00:08]} 3. Nc3 {[%emt 0:00:09]} Bg7 {[%emt 0:00:06]} 4. f4 {[%emt 0:00:08]} Nf6 {[%emt 0:00:12]} 5. Nf3 {[%emt 0:00:17]} O-O {[%emt 0:00:07]} 6. Bd3 {[%emt 0:00:36]} Na6 {[%emt 0:00:20][%cal Bb8a6,Ba6b4,Bb4c2][%mdl 32]} 7. O-O {[%emt 0:03:58]} c5 {[%emt 0:00:06]} 8. d5 {[%emt 0:00:12]} Bg4 $1 {[%emt 0:00:04] 8...Bg4 is better than 8...Rb8.} 9. Qe1 {[%emt 0:12:07]} (9. Bxa6 $14 bxa6 10. h3 Bxf3 11. Qxf3) 9... Nb4 $11 {[%emt 0:00:53][%cal Oc5c4] B09: Pirc Defence: Austrian Attack.} 10. Qh4 {[%emt 0:05:20]} c4 {[%emt 0:11:10]} 11. Bxc4 {[%emt 0:00:40] Black must now prevent Bb3.} Nxc2 {[%emt 0:00:33] The position is equal.} 12. Rb1 {[%emt 0:00:44]} Bxf3 {[%emt 0:25:59]} 13. Rxf3 {[%emt 0:01:35] [#]} Qb6+ $146 {[%emt 0:03:34]} ({Predecessor:} 13... Rc8 14. Bf1 Qb6+ 15. Kh1 h5 16. h3 Nd4 17. Rd3 Rxc3 18. Rxc3 Nxe4 19. Rc4 Nf5 20. Qe1 Bd4 21. g4 Bf2 {0-1 (21) Gudyev,M (2537)-Echeguren,G (2567) Brazil 1999}) 14. Kh1 {[%emt 0:07:41]} Rfc8 $36 {[%emt 0:04:52][%cal Bf8c8,Bc8c4,Bc4c7,Bc7e7][%mdl 2080] Black has the initiative.} 15. b3 {[%emt 0:12:59] [#]} Nxe4 $1 {[%emt 0:05:30]} 16. Nxe4 {[%emt 0:07:10]} Rxc4 $1 {[%emt 0:00:35]} 17. Qxe7 {[%emt 0:07:03]} (17. f5 $1 $11 Qd4 18. Bf4 Qxe4 19. fxg6 (19. bxc4 Nd4 $15)) 17... Rc7 {[%emt 0:06:29]} ({Don't play} 17... Qd4 $6 18. Ng3 Qb6 19. bxc4 $11) 18. Qxd6 {[%emt 0:19:09]} Qxd6 {[%emt 0:06:49]} 19. Nxd6 {[%emt 0:00:06]} Rd8 {[%emt 0:00:08]} 20. Nc4 {[%emt 0:03:04]} Rxd5 {[%emt 0:00:12]} 21. Rf1 {[%emt 0:02:11][%cal Of4f5] Inhibits Rd1.} Re7 {[%emt 0:04:28] 0x0.0022fc2d4041dp-1022s more active pieces.} 22. Bb2 {[%emt 0:01:59]} Re2 {[%emt 0:01:22]} 23. Bxg7 {[%emt 0:02:13]} Kxg7 {[%emt 0:00:07]} 24. Rb2 {[%emt 0:00:11]} b5 $1 {[%emt 0:06:34][%cal Bb7b5,Bb5b4][%mdl 32]} 25. Ne5 {[%emt 0:06:20]} Nd4 {[%emt 0:15:33]} (25... g5 $1 $17 {White should prevent ...f6.} 26. h3 Nd4) 26. Rxe2 {[%emt 0:01:54]} Nxe2 {[%emt 0:00:04][%mdl 4096] Endgame KRN-KRN} 27. g3 $1 {[%emt 0:02:31]} Nc3 {[%emt 0:02:01]} 28. Rc1 {[%emt 0:01:00]} b4 {[%emt 0:00:25]} ({Much less strong is} 28... Nxa2 29. Rc7 $14) 29. Rc2 {[%emt 0:02:16]} a5 {[%emt 0:04:37]} 30. Kg2 {[%emt 0:00:15]} f6 {[%emt 0:01:03]} 31. Nc4 {[%emt 0:00:13]} Kf7 {[%emt 0:00:49]} 32. a3 {[%emt 0:00:28]} Ke6 {[%emt 0:00:15]} 33. axb4 {[%emt 0:01:06]} axb4 {[%emt 0:00:03]} 34. Ne3 $2 {[%emt 0:00:40] This move loses the game for White.} (34. Nb2 $11 {and White stays safe.}) 34... Rd3 $19 {[%emt 0:00:46]} 35. Kf2 {[%emt 0:00:29]} Ne4+ {[%emt 0:00:51]} 36. Kf3 {[%emt 0:00:21]} Nd6 {[%emt 0:00:07] Strongly threatening ...Nf5.} 37. Ke2 {[%emt 0:00:43]} Rxb3 {[%emt 0:00:07]} 38. Rc6 {[%emt 0:00:07] [#]} Kd7 $1 {[%emt 0:00:55]} 39. Ra6 $2 {[%emt 0:00:47] [#]} (39. Rc2) 39... Ra3 $1 {[%emt 0:01:18]} 40. Rxa3 {[%emt 0:00:36]} bxa3 {[%emt 0:00:05] KN-KN} 41. Kd3 {[%emt 0:01:39]} a2 {[%emt 0:02:07]} 42. Nc2 {[%emt 0:00:03]} Ke6 {[%emt 0:03:29]} 43. Kc3 {[%emt 0:00:39]} Kf5 {[%emt 0:01:21] ...Kg4 is the strong threat.} 44. Kb2 {[%emt 0:00:12]} Kg4 {[%emt 0:00:14]} 45. Ne3+ {[%emt 0:12:22]} Kh3 {[%emt 0:00:05]} 46. g4 {[%emt 0:02:09]} Kxh2 {[%emt 0:02:20] ( -> ...Kg3)} 47. Nd5 {[%emt 0:00:21]} Ne4 {[%emt 0:00:55] Black mates.} 48. Kxa2 {[%emt 0:00:42]} Kg3 {[%emt 0:00:36]} 49. g5 {[%emt 0:00:07]} fxg5 {[%emt 0:00:09]} 50. fxg5 {[%emt 0:00:07]} Nxg5 {[%emt 0:00:08]} 51. Kb2 {[%emt 0:00:19]} h5 {[%emt 0:02:28] Weighted Error Value: White=0.73/Black=0.07 (flawless)} 0-1

[Event "Krakow Championship-A 2022"]
[Site "Krakow"]
[Date "2022.06.26"]
[Round "2.7"]
[White "Rozentalis, Eduardas"]
[Black "Kyc, Jerzy"]
[Result "1/2-1/2"]
[ECO "B53"]
[WhiteElo "2523"]
[BlackElo "2213"]
[Annotator "TA"]
[PlyCount "84"]
[EventDate "2022.06.25"]
[EventType "swiss"]
[EventCountry "POL"]
[SourceTitle "playchess.com"]
[Source "ChessBase"]
[SourceQuality "1"]
[TimeControl "40/5400+30:1800+30"]

{[%evp 10,84,27,27,26,19,17,23,24,25,29,4,8,13,14,16,4,0,0,1,0,0,0,0,0,0,9,-14,-12,-28,0,0,0,-31,20,-29,-29,-120,-124,-118,-114,-117,-116,-197,-183,-170,-40,-44,-36,-49,-47,-42,-28,-45,-39,-146,-143,-121,-45,-47,-30,-123,-85,-76,-8,-40,-30,-34,-37,-139,-100,-141,-12,-10,-10,-9,-6]} 1. e4 {[%emt 0:00:02]} c5 {[%emt 0:00:03]} 2. Nf3 {[%emt 0:00:08]} d6 {[%emt 0:00:05]} 3. d4 {[%emt 0:00:10]} cxd4 {[%emt 0:00:02]} 4. Qxd4 {[%emt 0:00:04]} a6 {[%emt 0:00:19]} 5. c4 {[%emt 0:03:14]} Nc6 {[%emt 0:00:04]} 6. Qe3 {[%emt 0:00:09]} g6 {[%emt 0:00:44] B53: Sicilian: 2...d6: Lines with Qxd4.} 7. Be2 {[%emt 0:00:50]} Bg4 {[%emt 0:00:28]} 8. O-O {[%emt 0:01:04]} Bg7 {[%emt 0:00:59] White has an edge.} 9. Rd1 {[%emt 0:01:37]} Qa5 {[%emt 0:06:19] [#] Against c5} 10. a3 $146 {[%emt 0:18:13]} ({Predecessor:} 10. Bd2 Qc5 11. Qb3 Nf6 12. Nc3 Qb4 13. Qxb4 Nxb4 14. a3 Nc6 15. h3 Bxf3 16. Bxf3 {1-0 (66) Vokhidov,S (2529)-Ibrahimli,M (2436) Chess.com INT 2020}) 10... Nf6 {[%emt 0:09:59]} 11. b4 {[%emt 0:06:29]} Qc7 {[%emt 0:06:07][%cal Of6e4]} (11... Nxb4 $2 12. Bd2 $18) 12. Ra2 {[%emt 0:01:29]} O-O {[%emt 0:18:03]} 13. Bb2 {[%emt 0:06:18]} Rfd8 {[%emt 0:19:00]} 14. Nbd2 {[%emt 0:03:59]} Bxf3 {[%emt 0:03:58]} 15. Qxf3 {[%emt 0:08:09]} a5 {[%emt 0:03:27]} 16. b5 {[%emt 0:04:36]} Ne5 {[%emt 0:00:20]} 17. Qe3 {[%emt 0:01:25]} Rac8 {[%emt 0:03:26]} 18. Bd4 {[%emt 0:10:01]} Ned7 {[%emt 0:00:43] Against Bb6} 19. Rc2 {[%emt 0:01:30]} e5 {[%emt 0:03:08]} 20. Bc3 {[%emt 0:01:43]} Nc5 {[%emt 0:01:05]} 21. f3 {[%emt 0:02:48]} b6 {[%emt 0:02:09]} (21... Ne6 $15) 22. Nf1 {[%emt 0:05:12]} (22. Nb1 {feels stronger.}) 22... Na4 $11 {[%emt 0:05:52][%cal Od6d5]} 23. Bd2 {[%emt 0:04:00]} (23. Rdc1 $11 {remains equal.}) 23... d5 $1 $17 {[%emt 0:01:26]} 24. exd5 {[%emt 0:00:20]} Nxd5 {[%emt 0:00:16][%mdl 64] Pin. Pair of Knights!} 25. Qf2 {[%emt 0:00:07]} Nf4 {[%emt 0:03:14]} 26. Be3 {[%emt 0:00:41]} (26. Ne3 $17) 26... Rxd1 $19 {[%emt 0:01:35]} 27. Bxd1 {[%emt 0:00:13]} Nc5 {[%emt 0:01:10]} (27... Bf8 $19 28. Ng3 f5) 28. Bxc5 $15 {[%emt 0:04:20]} Qxc5 {[%emt 0:08:59]} 29. Qxc5 {[%emt 0:00:27]} Rxc5 {[%emt 0:00:01]} 30. Ne3 {[%emt 0:00:11]} Ne6 {[%emt 0:01:53]} 31. Nd5 {[%emt 0:05:34]} Nd4 {[%emt 0:00:11]} 32. Nxb6 {[%emt 0:00:33]} Nxc2 $17 {[%emt 0:00:05]} 33. Bxc2 $15 {[%emt 0:00:04][%mdl 4096] Endgame [#] KRB-KBN} Bf8 {[%emt 0:01:02]} ({Better is} 33... e4 $1 $17 34. Bxe4 Bd4+ 35. Kf1 Rc7) 34. Bd3 {[%emt 0:00:52]} Rc7 {[%emt 0:00:41] Strongly threatening ...Bc5+.} 35. Nd5 {[%emt 0:00:20]} (35. Kf1 $1 $11) 35... Bc5+ {[%emt 0:00:13]} 36. Kf1 {[%emt 0:00:35] [#]} Rb7 {[%emt 0:00:01]} (36... Rc8 $1 $17 37. a4 f5) 37. Nf6+ {[%emt 0:02:02]} Kf8 {[%emt 0:01:13]} 38. Be4 {[%emt 0:02:18]} Rc7 {[%emt 0:00:35]} 39. Bc6 {[%emt 0:02:57]} ({White should try} 39. Bd5 $15) 39... Bxa3 $17 {[%emt 0:00:26] ...a4 is the strong threat.} 40. Ke2 {[%emt 0:00:46]} Be7 {[%emt 0:00:36]} (40... Rc8 $17 {Hoping for ...Ke7.} 41. Nd7+ Ke7 42. Nxe5 Bb2) 41. Nd7+ $11 {[%emt 0:30:43] [#]} Rxd7 $1 {[%emt 0:30:30]} 42. Bxd7 {[%emt 0:00:05]} Bc5 {[%emt 0:00:08] Weighted Error Value: White=0.25 (precise) /Black=0.22 (precise)} 1/2-1/2